bitfinex/quotes_ETHUSD_20220310
["timestamp","ask_amount","ask_price","bid_price","bid_amount"]
[1646892356401,0.445,2599.2,2598.6,1.1614]
[1646892356604,0.06406753,2599.1,2598.6,1.1614]
[1646892356808,0.50906753,2599.1,2598.6,2.03977432]
[1646892357004,0.06036563,2599.0,2598.6,2.03977432]
[1646892357204,0.06036563,2599.0,2598.6,1.1614]
[1646892357404,0.06036563,2599.0,2598.4,2.7604]
[1646892358005,0.06036563,2599.0,2598.3,0.00142658]
[1646892358204,0.96316,2599.4,2598.3,0.0681474]
[1646892358405,0.06508838,2599.3,2598.3,0.0681474]
[1646892358806,0.44968838,2599.3,2598.2,22.42532666]
[1646892359007,0.06179447,2599.2,2598.2,22.42532666]
[1646892359206,0.86949765,2598.9,2598.3,0.94757919]
[1646892359413,0.86949765,2598.9,2598.3,12.68757919]
[1646892359607,0.05896339,2599.3,2598.3,12.68757919]
[1646892360655,1.03106865,2599.3,2598.4,12.70307]
[1646892360856,0.05409287,2599.2,2598.5,1.2068]
[1646892361860,0.88475021,2598.8,2598.5,1.2068]
[1646892362063,0.88475021,2598.8,2598.3,1.98201]
[1646892362262,0.88475021,2598.8,2598.3,1.98343658]
[1646892362263,0.05046891,2598.7,2598.3,1.98343658]
[1646892362461,0.49546891,2598.7,2598.3,0.00142658]
[1646892362660,0.05814017,2598.6,2598.3,0.00142658]
[1646892362861,0.05814017,2598.6,2598.0,1.80033658]
[1646892363261,0.05814017,2598.6,2597.9,2.34230889]
[1646892363460,0.05814017,2598.6,2597.9,14.08230889]
[1646892363901,0.05814017,2598.6,2598.3,0.90330374]
[1646892364103,0.3846,2599.2,2598.3,0.90330374]
[1646892364104,0.499151,2599.1,2598.3,0.90330374]
[1646892364301,0.06239378,2599.0,2598.3,0.90330374]
[1646892365103,1.00636709,2598.9,2598.3,0.90330374]
[1646892365302,0.06343399,2598.8,2598.3,2.90330374]
[1646892365903,0.06343399,2598.8,2598.3,2.0]
[1646892366304,0.06343399,2598.8,2598.2,1.1644]
[1646892366305,0.50843399,2598.8,2598.2,1.1644]
[1646892366706,0.06241655,2598.7,2598.2,1.1644]
[1646892366907,0.445,2598.6,2598.2,1.1644]
[1646892367106,1.18178454,2598.5,2598.1,2.0]
[1646892367311,1.18178454,2598.5,2597.9,0.00141257]
[1646892367312,1.46392609,2598.4,2597.9,0.00141257]
[1646892367510,0.05956127,2598.3,2597.9,0.00141257]
[1646892367757,0.05530367,2598.1,2597.9,0.00141257]
[1646892367958,0.445,2598.1,2597.7,11.7006]
[1646892368159,0.445,2598.1,2597.7,2.0]
[1646892368160,0.050481,2597.9,2597.7,2.0]
[1646892368456,0.050481,2597.9,2597.6,0.00141272]
[1646892369056,0.050481,2597.9,2597.4,1.1679]
[1646892369862,0.050481,2597.9,2597.4,2.1317256]
[1646892370458,0.050481,2597.9,2597.4,5.6317256]
[1646892370659,0.050481,2597.9,2597.4,2.1317256]
[1646892370859,0.050481,2597.9,2597.5,3.5]
[1646892371060,0.050481,2597.9,2597.4,2.1317256]
[1646892371266,0.050481,2597.9,2597.4,1.1679]
[1646892371703,0.050481,2597.9,2597.3,9.32]
[1646892372304,0.050481,2597.9,2597.3,7.32]
[1646892372305,1.22676908,2597.4,2597.3,7.32]
[1646892372511,1.27940953,2597.4,2597.3,7.32]
[1646892372709,1.72440953,2597.4,2596.9,2.0]
[1646892372908,0.05503321,2597.3,2596.9,2.0]
[1646892373107,0.50003321,2597.3,2596.9,2.0]
[1646892373307,0.445,2597.3,2596.9,2.0]
[1646892373507,0.05821711,2597.2,2596.8,0.00141313]
[1646892373706,1.09786544,2596.9,2596.8,0.00141313]
[1646892373907,2.11744035,2596.9,2596.4,2.0]
[1646892374108,0.06165489,2596.8,2596.4,2.0]
[1646892374309,0.06165489,2596.8,2596.5,0.00141332]
[1646892375162,0.06165489,2596.8,2596.2,8.52536196]
[1646892375951,0.06165489,2596.8,2596.2,6.9828815]
[1646892376557,0.06165489,2596.8,2596.2,1.20536196]
[1646892376955,0.06165489,2596.8,2596.0,7.32141359]
[1646892377356,0.96417,2596.7,2596.0,9.32141359]
[1646892377558,0.05199957,2596.6,2596.0,9.32]
[1646892377958,1.236588,2596.3,2596.0,2.0]
[1646892378158,0.05334742,2596.2,2596.0,2.0]
[1646892378356,0.05334742,2596.2,2595.9,0.00671484]
[1646892378755,0.05334742,2596.2,2595.6,2.0]
[1646892379002,0.05334742,2596.2,2595.6,2.00671558]
[1646892379201,0.05334742,2596.2,2595.6,2.91191506]
[1646892379404,0.05334742,2596.2,2595.6,0.91191506]
[1646892379603,0.96417,2596.7,2595.7,152.0]
[1646892379804,1.56981697,2597.5,2595.8,12.19501512]
[1646892379805,0.05429229,2597.1,2595.8,12.19501512]
[1646892380005,0.05429229,2597.1,2596.1,0.08336796]
[1646892380206,0.05429229,2597.1,2596.3,0.0754053]
[1646892380608,1.08315597,2596.9,2596.4,0.07304658]
[1646892380902,1.08315597,2596.9,2596.3,4.40116447]
[1646892381103,0.05429229,2597.1,2596.4,0.07111871]
[1646892381303,0.49572773,2597.5,2596.5,80.5]
[1646892381508,10.85543567,2599.1,2596.7,11.74]
[1646892381509,9.3065,2597.7,2596.7,11.74]
[1646892381711,0.04979338,2597.8,2596.8,3.58294929]
[1646892381907,6.03327106,2598.2,2596.9,0.07536764]
[1646892382112,0.0503621,2598.1,2596.9,1.29136764]
[1646892382308,0.94996819,2597.7,2597.0,1.10372074]
[1646892382509,0.94996819,2597.7,2597.1,0.08902816]
[1646892382755,0.9951032,2597.7,2597.0,0.00141302]
[1646892383554,0.9951032,2597.7,2596.9,1.216]
[1646892384457,0.96384,2597.6,2596.9,1.216]
[1646892384657,0.96384,2597.6,2597.2,0.99129134]
[1646892384865,0.94996819,2597.7,2597.3,0.08826318]
[1646892385059,0.94996819,2597.7,2597.0,0.07107904]
[1646892386264,0.96371,2598.0,2597.2,1.21491014]
[1646892386710,4.37015,2598.3,2597.3,0.08172865]
[1646892386711,2.4428,2598.3,2597.3,0.08172865]
[1646892387110,0.96356,2598.4,2597.3,0.08172865]
[1646892387311,1.03942535,2598.2,2597.3,0.08172865]
[1646892387511,1.03942535,2598.2,2597.2,22.56]
[1646892388014,1.03942535,2598.2,2597.3,0.08221326]
[1646892388413,1.03942535,2598.2,2597.4,2.0]
[1646892388612,1.03942535,2598.2,2597.5,0.07922631]
[1646892389315,2.00305535,2598.2,2597.5,0.07922631]
[1646892389714,1.03942535,2598.2,2597.5,0.07922631]
[1646892390356,1.03942535,2598.2,2597.5,2.07922631]
[1646892390560,1.44982302,2598.5,2597.6,3.58700851]
[1646892390758,1.44982302,2598.5,2597.7,0.0798339]
[1646892390759,0.96351,2598.5,2597.7,0.0798339]
[1646892391359,1.34811,2598.5,2597.7,0.0798339]
[1646892391563,0.98819368,2598.3,2597.7,1.08823838]
[1646892392463,1.39864544,2598.5,2597.7,1.08823838]
[1646892393262,1.01404544,2598.5,2597.7,1.08823838]
[1646892393463,0.96351,2598.5,2597.8,3.58494236]
[1646892393665,2.37206,2598.7,2598.1,1.1100886]
[1646892393666,0.445,2598.7,2598.1,1.1100886]
[1646892393905,0.0419873,2598.9,2598.1,2.2413886]
[1646892394305,0.0419873,2598.9,2598.4,2.0]
[1646892394705,0.992817,2598.8,2598.4,2.0]
[1646892395306,0.992817,2598.8,2598.2,2.08316826]
[1646892395709,0.992817,2598.8,2598.3,0.08900112]
[1646892396308,0.99162132,2598.8,2598.3,0.08900112]
[1646892396712,1.95503132,2598.8,2598.2,2.0]
[1646892397413,1.95503132,2598.8,2598.1,4.68414141]
[1646892397659,0.96341,2598.8,2598.1,4.68414141]
[1646892398154,1.010402,2599.0,2598.2,0.08211439]
[1646892398553,0.9298918,2598.9,2598.2,0.08211439]
[1646892399254,0.96341,2598.8,2598.2,0.08211439]
[1646892399454,0.96341,2598.8,2598.1,2.0]
[1646892399656,0.96341,2598.8,2598.1,5.5]
[1646892399855,1.3144918,2598.9,2598.1,5.5]
[1646892400457,0.9298918,2598.9,2598.2,2.0]
[1646892401057,0.9298918,2598.9,2598.4,1.22259498]
[1646892401261,1.010402,2599.0,2598.4,1.22259498]
[1646892401510,9.1728,2599.3,2598.4,1.22259498]
[1646892401511,9.60877696,2599.3,2598.4,1.22259498]
[1646892401710,0.43597696,2599.3,2598.4,1.22259498]
[1646892401910,0.00257893,2599.1,2598.5,3.5]
[1646892402510,0.00257893,2599.1,2598.5,5.5]
[1646892402711,1.39920696,2599.3,2598.5,5.5]
[1646892403115,43.5,2598.9,2598.3,0.08099145]
[1646892403314,43.5,2598.9,2597.9,1.92772823]
[1646892403315,0.04534352,2598.7,2597.9,0.00115823]
[1646892403521,0.04590669,2598.5,2597.9,0.00115823]
[1646892403712,0.4914831,2598.4,2597.9,0.00115823]
[1646892403915,0.43461202,2598.2,2596.9,0.07484724]
[1646892404129,0.93429156,2597.5,2596.9,1.12322927]
[1646892404313,0.04555429,2597.9,2596.9,1.12322927]
[1646892404314,0.445,2597.6,2596.9,1.12322927]
[1646892404714,0.9639,2597.5,2596.9,1.12322927]
[1646892405014,0.9639,2597.5,2596.9,0.07484724]
[1646892405261,0.9639,2597.5,2596.7,1.2411]
[1646892405262,1.92802,2597.3,2596.7,1.2411]
[1646892405463,3.5428498,2597.4,2596.7,0.00128574]
[1646892405662,0.05312083,2597.2,2596.7,0.00128574]
[1646892405862,0.445,2597.1,2596.7,0.00128574]
[1646892406262,1.64286879,2597.1,2596.7,0.00128574]
[1646892406466,1.64286879,2597.1,2596.4,1.03508537]
[1646892406667,1.64286879,2597.1,2596.4,0.00128589]
[1646892406668,3.54832456,2597.0,2596.4,0.00128589]
[1646892406867,0.49745947,2596.9,2596.4,0.00128589]
[1646892407067,0.49876332,2596.9,2596.4,0.00128589]
[1646892407666,0.49876332,2596.9,2596.3,7.32]
[1646892407867,0.96412,2596.8,2596.3,7.32]
[1646892408068,0.04673005,2597.5,2596.4,0.08076744]
[1646892408267,0.445,2597.1,2596.4,0.08076744]
[1646892408466,0.49513044,2597.1,2596.4,0.08076744]
[1646892408905,0.49513044,2597.1,2596.5,1.08308782]
[1646892409106,1.39510222,2597.1,2596.5,1.08308782]
[1646892409904,0.49513044,2597.1,2596.5,1.08308782]
[1646892410104,0.445,2597.1,2596.5,1.08308782]
[1646892412111,0.445,2597.1,2596.4,0.08076744]
[1646892412311,1.409,2597.1,2596.4,0.08076744]
[1646892412956,1.409,2597.1,2596.3,0.00113052]
[1646892413155,1.409,2597.1,2596.5,1.20903178]
[1646892413356,1.409,2597.1,2596.5,1.29752346]
[1646892413755,1.409,2597.1,2596.5,0.08849168]
[1646892413958,1.7936,2597.1,2596.3,0.00116471]
[1646892414156,0.8296,2597.1,2596.3,0.00116471]
[1646892414455,0.8296,2597.1,2596.3,0.08034136]
[1646892414860,0.445,2597.1,2596.5,1.02222324]
[1646892415459,1.40899,2597.1,2596.5,1.02222324]
[1646892415962,1.79359,2597.1,2596.3,0.07917665]
[1646892416257,1.79359,2597.1,2596.3,0.00116471]
[1646892416919,1.79359,2597.1,2596.3,0.07256191]
[1646892417120,1.40899,2597.1,2596.5,0.98604774]
[1646892421370,1.79359,2597.1,2596.3,0.07255604]
[1646892421973,1.79359,2597.1,2596.3,0.0713972]
[1646892422577,1.40899,2597.1,2596.4,1.14217962]
[1646892423174,1.15885427,2596.9,2596.4,1.14217962]
[1646892423373,1.40899,2597.1,2596.4,1.14217962]
[1646892424408,1.40899,2597.1,2596.4,1.14068268]
[1646892424806,1.40899,2597.1,2596.5,0.08797348]
[1646892426007,1.40899,2597.1,2596.3,0.00115848]
[1646892426814,1.10652593,2596.6,2596.1,0.07443036]
[1646892427016,1.10652593,2596.6,2596.2,0.00115852]
[1646892428057,0.9641,2596.7,2596.1,0.07443036]
[1646892429463,1.9615312,2596.7,2596.1,0.07443036]
[1646892430366,0.9974312,2596.7,2596.1,0.07443036]
[1646892430665,1.84677217,2596.9,2596.1,0.07443036]
[1646892431406,1.46217217,2596.9,2596.1,0.07443036]
[1646892431611,1.84677217,2596.9,2596.1,0.07443036]
[1646892431810,1.84677217,2596.9,2596.0,3.33087263]
[1646892431811,0.95695897,2596.7,2596.0,3.33087263]
[1646892432011,2.36608897,2596.7,2596.0,2.36686263]
[1646892432214,2.36608897,2596.7,2596.0,0.00115868]
[1646892432215,3.5,2596.6,2596.0,0.00115868]
[1646892432412,2.36608897,2596.7,2596.0,0.00115868]
[1646892432413,2.37373,2596.5,2596.0,0.00115868]
[1646892432611,0.445,2596.4,2596.0,0.00115868]
[1646892432810,0.445,2596.4,2595.3,0.06999465]
[1646892433011,0.445,2596.4,2595.7,0.00550424]
[1646892433213,1.11340128,2596.2,2595.7,0.00550424]
[1646892433412,0.96437,2596.1,2595.7,0.07579718]
[1646892433911,0.96437,2596.1,2595.7,0.07029294]
[1646892435355,0.96437,2596.1,2595.2,8.5393]
[1646892435555,0.96437,2596.1,2595.4,0.00159385]
[1646892436356,0.96437,2596.1,2595.3,0.06892812]
[1646892436558,0.96437,2596.1,2595.4,1.01253381]
[1646892436758,0.96437,2596.1,2595.5,0.08846194]
[1646892437264,0.96437,2596.1,2595.3,0.07405262]
[1646892437265,1.40937,2596.1,2595.3,0.07405262]
[1646892438461,1.40937,2596.1,2595.3,1.27199222]
[1646892438664,1.40937,2596.1,2595.4,0.08208766]
[1646892441107,0.97241688,2595.8,2595.4,0.08208766]
[1646892441307,0.96458,2595.7,2595.4,0.08208766]
[1646892441513,0.96458,2595.7,2595.2,0.08775143]
[1646892442112,1.40958,2595.7,2595.2,0.08775143]
[1646892442311,1.40958,2595.7,2595.2,0.08663272]
[1646892442514,1.40958,2595.7,2595.2,0.08243756]
[1646892442959,1.40958,2595.7,2595.1,7.32]
[1646892443158,1.40958,2595.7,2594.9,0.07430953]
[1646892443357,1.40958,2595.7,2594.9,0.00531448]
[1646892443558,1.40958,2595.7,2594.8,0.00568114]
[1646892443757,1.40958,2595.7,2594.8,0.08834299]
[1646892443957,0.05799398,2595.6,2594.8,0.09389138]
[1646892444162,0.89654831,2595.4,2594.8,1.08692526]
[1646892444364,1.86112831,2595.4,2594.8,1.08692526]
[1646892444567,0.96458,2595.4,2594.8,1.08692526]
[1646892444761,0.05799398,2595.6,2594.8,1.08137687]
[1646892445562,0.05799398,2595.6,2595.2,0.89463082]
[1646892446165,0.445,2595.7,2595.2,0.89463082]
[1646892446166,0.96449,2595.7,2595.2,0.89463082]
[1646892446411,2.3982,2596.1,2595.3,0.07216524]
[1646892446609,2.3982,2596.1,2595.3,3.57216524]
[1646892446810,2.3982,2596.1,2595.6,0.96997964]
[1646892446811,1.18976167,2596.1,2595.6,0.96997964]
[1646892447010,1.98538982,2596.2,2595.6,0.96997964]
[1646892447210,0.96438,2596.0,2595.6,0.96997964]
[1646892447411,0.8296,2596.5,2595.6,0.96997964]
[1646892447412,0.05755721,2596.4,2595.6,0.96997964]
[1646892448211,0.05755721,2596.4,2596.0,1.09052518]
[1646892448415,0.445,2596.7,2596.0,1.09052518]
[1646892448416,0.04719298,2596.7,2596.0,1.09052518]
[1646892449414,1.01128298,2596.7,2596.0,1.09052518]
[1646892449634,0.05896111,2596.6,2596.0,1.09052518]
[1646892451165,0.05896111,2596.6,2595.9,0.07380857]
[1646892451365,0.9642,2596.4,2595.8,0.00550619]
[1646892452066,1.03874403,2596.3,2595.7,1.128259]
[1646892452267,1.03874403,2596.3,2595.7,1.04955506]
[1646892452268,1.09165195,2596.3,2595.7,1.04955506]
[1646892452467,0.04914921,2596.2,2595.7,1.04955506]
[1646892453271,0.96431,2596.1,2595.7,1.04955506]
[1646892455915,0.96431,2596.1,2595.5,1.232]
[1646892457217,0.96431,2596.1,2595.6,3.5]
[1646892457419,0.96431,2596.1,2595.6,4.70348639]
[1646892457660,0.04914921,2596.2,2595.6,1.20348639]
[1646892458662,0.96424,2596.4,2595.6,1.27710146]
[1646892458861,0.96424,2596.4,2595.6,4.77710146]
[1646892459761,0.96424,2596.4,2595.6,1.27710146]
[1646892460166,0.96424,2596.4,2595.6,4.77710146]
[1646892460369,0.96424,2596.4,2595.6,4.70348639]
[1646892460770,0.057494,2596.5,2595.7,0.96413]
[1646892461421,1.1643031,2596.5,2595.7,0.96413]
[1646892462214,0.05014085,2596.4,2595.7,0.96413]
[1646892462413,0.05014085,2596.4,2596.0,1.04829816]
[1646892462614,0.05687745,2596.7,2596.0,1.04829816]
[1646892462814,0.05687745,2596.7,2596.1,3.5]
[1646892463014,0.96409,2596.9,2596.1,3.56336643]
[1646892463214,0.96409,2596.9,2596.1,0.06336643]
[1646892463715,0.96409,2596.9,2596.1,3.56336643]
[1646892463918,0.96409,2596.9,2596.1,4.52733643]
[1646892464116,0.0550204,2597.0,2596.1,4.52733643]
[1646892464815,0.0550204,2597.0,2596.5,1.00961777]
[1646892465016,0.05378714,2597.3,2596.5,1.00961777]
[1646892465258,0.43838714,2597.3,2596.5,1.00961777]
[1646892465460,0.04721796,2597.2,2596.5,1.00961777]
[1646892466066,0.96397,2597.1,2596.5,1.00961777]
[1646892466264,0.05985042,2597.0,2596.5,1.00961777]
[1646892466663,0.05985042,2597.0,2596.3,3.5]
[1646892466864,0.05985042,2597.0,2596.2,1.2463]
[1646892467064,0.96406,2596.9,2596.2,1.2463]
[1646892467265,0.05342285,2596.8,2596.2,1.2463]
[1646892467866,0.9512603,2596.5,2596.2,1.2463]
[1646892468072,0.9512603,2596.5,2595.7,0.0808241]
[1646892468073,0.00155688,2596.2,2595.7,0.0808241]
[1646892469420,0.93927129,2596.1,2595.7,0.0808241]
[1646892469622,0.82261379,2596.1,2595.5,1.1337]
[1646892470626,0.82261379,2596.1,2595.5,2.32543628]
[1646892471022,0.82261379,2596.1,2595.6,1.5983078]
[1646892471221,0.44655688,2596.2,2595.5,2.24461218]
[1646892471427,1.01800843,2596.1,2595.5,2.24461218]
[1646892471623,1.01800843,2596.1,2595.6,1.59830976]
[1646892471823,0.05364843,2596.1,2595.6,1.59830976]
[1646892472031,0.00155688,2596.2,2595.6,5.09830976]
[1646892472426,0.00155688,2596.2,2595.7,1.59830976]
[1646892473059,0.00155688,2596.2,2595.9,1.11842327]
[1646892477015,0.00155688,2596.2,2596.0,5.09814858]
[1646892477216,0.00155688,2596.2,2596.1,3.5]
[1646892477620,0.05564177,2596.9,2596.2,111.99844312]
[1646892477816,0.05564177,2596.9,2596.3,3.5]
[1646892478817,0.05564177,2596.9,2596.6,0.94764483]
[1646892480258,2.71330016,2597.2,2596.2,62.96551412]
[1646892480458,0.05962193,2597.1,2596.2,62.96551412]
[1646892480858,0.05962193,2597.1,2596.2,62.964]
[1646892481263,0.05962193,2597.1,2596.3,1.1527213]
[1646892481463,0.96402,2597.0,2596.3,1.1527213]
[1646892481768,0.0560197,2596.9,2596.3,1.1527213]
[1646892483666,1.01087977,2596.8,2596.2,0.964]
[1646892483924,1.01087977,2596.8,2596.1,3.06939421]
[1646892483925,0.05865227,2596.7,2596.1,3.06939421]
[1646892484214,0.05865227,2596.7,2596.1,1.14151421]
[1646892484417,0.05865227,2596.7,2596.1,1.14]
[1646892485016,1.96513824,2596.4,2596.1,1.14]
[1646892485820,0.06020597,2596.3,2596.1,1.14]
[1646892486218,0.05925806,2596.3,2596.1,1.14]
[1646892486822,0.05925806,2596.3,2595.6,1.91230513]
[1646892487026,0.05925806,2596.3,2595.7,1.5981791]
[1646892487223,0.05925806,2596.3,2595.7,3.5336427]
[1646892487423,0.06091437,2596.6,2595.8,1.5981791]
[1646892487667,0.04893534,2596.8,2596.1,0.964]
[1646892487868,0.04870449,2597.1,2596.1,0.964]
[1646892488271,0.04870449,2597.1,2596.2,1.59803084]
[1646892488469,0.04870449,2597.1,2596.1,0.80637845]
[1646892488668,0.04870449,2597.1,2596.5,0.91617901]
[1646892490470,0.05630919,2597.4,2596.6,0.96389]
[1646892490672,0.96381,2597.6,2596.7,13.33774491]
[1646892490673,0.04763265,2597.6,2596.7,13.33774491]
[1646892490870,6.1247,2597.9,2596.5,1.58266827]
[1646892490871,0.06132058,2598.2,2597.0,11.74]
[1646892491074,0.06132058,2598.2,2597.1,0.11053165]
[1646892491275,0.06132058,2598.2,2597.1,0.17817094]
[1646892491523,0.06048917,2598.1,2597.6,0.9774803]
[1646892491924,0.96353,2598.4,2597.6,1.92688]
[1646892491925,0.05903458,2598.3,2597.6,1.92688]
[1646892492929,0.05903458,2598.3,2597.6,2.83709054]
[1646892492930,1.04325737,2598.2,2597.6,2.83709054]
[1646892493127,0.05903458,2598.3,2597.6,2.83709054]
[1646892493328,3.5486296,2598.5,2597.6,2.83709054]
[1646892493529,0.0499937,2598.4,2597.6,2.83709054]
[1646892493729,0.05652713,2598.6,2597.5,0.06581562]
[1646892493927,0.05652713,2598.6,2597.4,0.00151342]
[1646892493928,0.3846,2598.5,2597.4,0.00151342]
[1646892494127,0.3846,2598.3,2597.2,0.06421637]
[1646892494327,0.58938777,2598.8,2597.2,0.06421637]
[1646892494328,0.96368,2598.0,2597.2,0.06421637]
[1646892494528,0.05500535,2597.9,2597.1,3.90852165]
[1646892494729,0.05500535,2597.9,2597.3,1.03089087]
[1646892495369,0.05500535,2597.9,2597.3,1.99450087]
[1646892495571,0.057388,2598.2,2597.3,1.99450087]
[1646892495771,3.5,2598.7,2597.3,13.73450087]
[1646892495772,0.445,2598.6,2597.3,13.73450087]
[1646892495971,0.04854548,2598.5,2597.3,13.73450087]
[1646892496576,0.97786436,2598.2,2597.3,13.73450087]
[1646892496774,0.04717114,2598.1,2597.4,0.0015639]
[1646892497376,0.97786436,2598.2,2597.4,0.0015639]
[1646892497582,0.06136995,2598.1,2597.3,1.99450087]
[1646892497975,0.06136995,2598.1,2597.3,1.99606483]
[1646892498779,0.06136995,2598.1,2597.3,13.73606483]
[1646892499014,3.5597422,2598.4,2597.4,0.3846]
[1646892499212,0.0597422,2598.4,2597.6,0.96347]
[1646892499612,0.96355,2598.3,2597.6,0.96347]
[1646892499913,1.1850788,2598.0,2597.6,0.96347]
[1646892501520,0.0511147,2597.9,2597.6,0.96347]
[1646892502120,1.1850788,2598.0,2597.6,0.96347]
[1646892504366,1.1850788,2598.0,2597.3,1.14636396]
[1646892504966,1.1850788,2598.0,2597.3,1.1448]
[1646892505168,1.14555462,2597.6,2597.3,1.1448]
[1646892505372,1.14555462,2597.6,2597.2,2.00630221]
[1646892505568,0.05163307,2598.1,2597.6,48.85444538]
[1646892505766,0.05163307,2598.1,2597.3,81.0]
[1646892505967,0.05163307,2598.1,2597.3,91.77653]
[1646892506168,0.05163307,2598.1,2597.5,0.9635]
[1646892507621,0.05793548,2598.2,2597.5,0.9635]
[1646892507822,0.05793548,2598.2,2597.3,80.03809396]
[1646892508223,1.0387751,2597.8,2597.3,80.03809396]
[1646892508423,1.0387751,2597.8,2597.3,80.03653]
[1646892509725,0.05804484,2597.7,2597.3,80.03653]
[1646892510169,0.96367,2597.9,2597.3,80.03653]
[1646892510575,0.96367,2597.9,2597.2,3.15744]
[1646892510770,0.04779367,2597.8,2597.2,3.15744]
[1646892510971,1.07861239,2597.8,2597.2,3.15744]
[1646892511172,0.05903459,2597.7,2597.2,3.15744]
[1646892511373,0.05903459,2597.7,2597.2,1.92704]
[1646892514915,1.03081872,2597.8,2597.2,1.92704]
[1646892515617,2.3997,2598.3,2597.2,1.92704]
[1646892515818,0.05800128,2598.2,2597.2,1.92704]
[1646892516316,3.55800128,2598.2,2597.2,1.92704]
[1646892516523,1.06341764,2597.9,2597.3,1.15832368]
[1646892517322,1.06341764,2597.9,2597.2,1.92704]
[1646892518169,0.06153629,2598.2,2597.2,13.66704]
[1646892518374,0.06153629,2598.2,2597.5,0.96351]
[1646892519171,1.21413092,2598.2,2597.5,2.10591167]
[1646892520271,1.21413092,2598.2,2597.5,0.96351]
[1646892520474,0.96362,2598.1,2597.5,0.96351]
[1646892524419,0.81362,2598.1,2597.5,0.96351]
[1646892524820,0.0541245,2598.0,2597.3,0.00156396]
[1646892525021,1.01795975,2597.9,2597.3,0.00156396]
[1646892525267,1.01795975,2597.9,2597.2,3.15254]
[1646892526073,0.94398057,2597.7,2597.2,3.15254]
[1646892526271,1.01795975,2597.9,2597.2,1.92704]
[1646892527877,1.17714997,2597.7,2597.2,1.92704]
[1646892530117,0.05171475,2598.1,2597.2,1.92704]
[1646892531119,1.0292233,2598.0,2597.2,1.92704]
[1646892531324,0.05361203,2597.9,2597.2,1.92704]
[1646892531723,0.05361203,2597.9,2597.2,13.66704]
[1646892531923,0.05723168,2598.2,2597.9,50.0]
[1646892532127,0.06019312,2598.4,2597.5,1.9268]
[1646892532326,4.67500345,2598.8,2597.5,1.9268]
[1646892532327,0.05086853,2598.7,2597.5,1.9268]
[1646892532772,0.91714821,2598.2,2597.5,2.93597705]
[1646892532973,0.97500808,2598.2,2597.6,0.9634]
[1646892534273,0.05785987,2598.2,2597.6,0.9634]
[1646892534474,0.05439102,2598.5,2597.6,0.9634]
[1646892535973,1.06060901,2598.2,2597.6,0.9634]
[1646892536174,0.05410488,2598.1,2597.6,0.9634]
[1646892539331,1.06060901,2598.2,2597.6,0.9634]
[1646892539726,1.11354196,2598.2,2597.5,13.6668]
[1646892540168,1.11354196,2598.2,2597.5,1.9268]
[1646892540767,0.3846,2598.5,2597.5,13.6668]
[1646892540971,0.96345,2598.7,2597.6,0.9634]
[1646892540972,0.05485465,2598.4,2597.6,0.9634]
[1646892541974,0.93597804,2598.2,2597.6,0.9634]
[1646892543926,0.0506053,2598.1,2597.6,0.9634]
[1646892544716,0.0506053,2598.1,2597.5,1.9268]
[1646892550570,0.0506053,2598.1,2597.4,1.1336]
[1646892551722,1.03606318,2597.8,2597.4,1.1336]
[1646892552124,1.03606318,2597.8,2597.2,12.90872832]
[1646892552524,1.03606318,2597.8,2597.2,16.40872832]
[1646892552724,1.03606318,2597.8,2597.3,1.59737683]
[1646892553625,0.0506053,2598.1,2597.3,1.59737683]
[1646892553824,0.0506053,2598.1,2597.4,3.5]
[1646892554227,0.0506053,2598.1,2597.5,0.96351]
[1646892554826,0.0506053,2598.1,2597.6,1.11800025]
[1646892556673,0.0506053,2598.1,2597.5,0.96351]
[1646892558773,0.0506053,2598.1,2597.4,1.0546635]
[1646892559920,0.0506053,2598.1,2597.6,0.96337]
[1646892560319,0.0506053,2598.1,2597.7,1.92674]
[1646892561723,1.18010345,2598.8,2597.7,2.00260101]
[1646892561724,0.05300814,2598.6,2597.7,2.00260101]
[1646892562325,0.05300814,2598.6,2597.7,1.92674]
[1646892562667,1.00117097,2598.2,2597.7,1.92674]
[1646892562966,1.05895753,2598.2,2597.7,1.92674]
[1646892563267,1.00117097,2598.2,2597.7,1.92674]
[1646892565169,1.05208519,2598.2,2597.7,1.92674]
[1646892565970,0.05618008,2598.1,2597.7,1.92674]
[1646892566623,0.05618008,2598.1,2597.4,0.00156387]
[1646892567426,0.05618008,2598.1,2597.3,6.02082]
[1646892571371,0.05618008,2598.1,2597.4,1.597269]
[1646892571775,0.05618008,2598.1,2597.5,1.92691]
[1646892572784,0.05618008,2598.1,2597.3,0.00156396]
[1646892572785,1.02353076,2597.8,2597.3,0.00156396]
[1646892572978,0.05651821,2597.7,2597.3,0.00156396]
[1646892573180,0.05240005,2597.9,2597.3,0.00156396]
[1646892573377,44.5,2598.0,2597.1,11.74]
[1646892573577,0.05406754,2597.9,2597.1,11.74]
[1646892574019,0.05406754,2597.9,2597.1,12.70366]
[1646892574421,0.9757248,2597.8,2597.1,13.67509505]
[1646892575520,0.9757248,2597.8,2597.1,12.70366]
[1646892575920,0.9757248,2597.8,2597.1,0.96366]
[1646892578669,0.05406754,2597.9,2597.3,1.92698]
[1646892578870,2.3434,2598.3,2597.3,1.92698]
[1646892578871,0.05495067,2598.2,2597.3,1.92698]
[1646892579375,0.05495067,2598.2,2597.4,0.06768371]
[1646892579575,0.05495067,2598.2,2597.5,11.74]
[1646892579774,0.05495067,2598.2,2597.6,0.93138449]
[1646892580574,0.05495067,2598.2,2597.6,0.9633]
[1646892581432,0.05495067,2598.2,2597.4,7.32]
[1646892581627,0.04912176,2597.8,2597.4,7.32]
[1646892584329,0.96367,2598.1,2597.4,7.32]
[1646892584530,0.05315412,2598.0,2597.5,0.96356]
[1646892584729,3.30697,2598.3,2597.5,0.96356]
[1646892584730,0.05673855,2598.2,2597.5,0.96356]
[1646892585576,0.05673855,2598.2,2597.7,1.07018692]
[1646892585974,0.05147943,2598.4,2597.7,1.07018692]
[1646892586174,0.05147943,2598.4,2597.8,3.5]
[1646892586777,0.05147943,2598.4,2597.7,1.07018692]
[1646892586977,0.05147943,2598.4,2598.1,1.07532118]
[1646892587377,0.05315658,2598.6,2598.1,1.07532118]
[1646892587577,0.00267289,2598.6,2598.1,1.07532118]
[1646892587779,0.05382078,2598.9,2598.1,1.07532118]
[1646892588081,0.00267314,2598.6,2598.1,1.07532118]
[1646892588477,0.05415452,2598.6,2597.7,0.96333]
[1646892589124,0.05415452,2598.6,2597.6,3.5]